Cogmind - Beta 13 @@@ ROGUE MODE // 2024.04.11 @ 07:43:35 Player: mehbruh Result: Core destroyed Performance ------------- Evolutions (0) 0 Regions Visited (3) 600 Robots Destroyed (19) 95 Value Destroyed (426) 426 Prototype IDs (4) 80 Alien Tech Used (0) 0 Bonus (0) 0 TOTAL SCORE: 1201 Bonus ------- None Cogmind --------- Core Integrity 0/250 Matter 273/300 Energy 100/100 System Corruption 11% Temperature Cool (0) Movement Core (1550) Ox30 Location -10/Exiles Parts ------- > --- POWER (1) -------- Heavy Ion Engine > --- PROPULSION (2) --- Wheel Compact Wheel > --- UTILITY (2) ------ Huge Storage Unit Hardened Light Armor Plating > --- WEAPON (2) ------- (None) > --- INVENTORY (25) --- Heavy Ion Engine Heavy Ion Engine Heavy Ion Engine Wheel Heat Sink High-capacity Matter Pod (36) Hardened Light Armor Plating Hardened Light Armor Plating Hardened Light Armor Plating Light EM Pulse Cannon Light EM Pulse Cannon Light EM Pulse Cannon Light EM Pulse Cannon Assault Rifle Grenade Launcher Grenade Launcher Hammer Peak State ------------ > --- POWER ------------ Heavy Ion Engine > --- PROPULSION ------- Wheel Compact Wheel > --- UTILITY ---------- Heat Sink Huge Storage Unit > --- WEAPON ----------- Light EM Pulse Cannon Light EM Pulse Cannon > --- INVENTORY -------- Heavy Ion Engine Heavy Ion Engine Heavy Ion Engine Hardened Light Armor Plating Hardened Light Armor Plating Hardened Light Armor Plating Hardened Light Armor Plating Light EM Pulse Cannon Light EM Pulse Cannon Grenade Launcher [Rating: 13] Favorites ----------- Power Heavy Ion Engine Engine Heavy Ion Engine Propulsion Light Treads Treads Light Treads Wheel Wheel Utility Small Storage Unit Device Heat Sink Storage Small Storage Unit Protection Hardened Light Armor Plating Weapon EM Pulse Gun Energy Gun EM Pulse Gun Energy Cannon Light EM Pulse Cannon Ballistic Gun Assault Rifle Impact Weapon Hammer Build | -11 -10 -10 -10 ------- Run | Yrd Mat Min Exi Slots Evolved . | . . . . Power . | . . . . Propulsion . | . . . . Utility . | . . . . Weapon . | . . . . Parts Attached 28 | 6 22 . . Power 4 | 1 3 . . Engine 4 | 1 3 . . Core . | . . . . Reactor . | . . . . Propulsion 7 | 2 5 . . Treads 5 | 2 3 . . Leg . | . . . . Wheel 2 | . 2 . . Hover . | . . . . Flight . | . . . . Utility 6 | 1 5 . . Device 1 | . 1 . . Storage 3 | 1 2 . . Processor . | . . . . Hackware . | . . . . Protection 2 | . 2 . . Artifact . | . . . . Weapon 11 | 2 9 . . Energy Gun 6 | 2 4 . . Energy Cannon 2 | . 2 . . Ballistic Gun 2 | . 2 . . Ballistic Cannon . | . . . . Launcher . | . . . . Special Weapon . | . . . . Impact Weapon 1 | . 1 . . Slashing Weapon . | . . . . Piercing Weapon . | . . . . Special Melee Weapon . | . . . . Unidentified Prototypes . | . . . . Parts Lost 2 | . 2 . . Power 1 | . 1 . . Propulsion . | . . . . Utility . | . . . . Weapon 1 | . 1 . . Highest Loss Streak 2 | . 2 . . To Critical Strikes . | . . . . Average Slot Usage (%) 94 | . 98 100 71 Engine 13 | . 13 14 14 Treads 13 | . 17 . . Wheel 14 | . 10 28 28 Device 7 | . 8 . . Storage 14 | . 14 14 14 Protection 6 | . 4 14 14 Energy Gun 16 | . 20 . . Energy Cannon 4 | . 4 14 . Ballistic Gun 2 | . 2 14 . Naked Turns . | . . . . Heaviest Build 99 | 14 99 99 99 Greatest Support 40 | 40 40 26 26 Greatest Overweight (x) 3 | . 3 3 3 Average Overweight (x) 1 | . 1 3 3 Largest Inventory Capacity 25 | 8 25 25 25 Average Capacity 16 | 6 14 25 25 Most Carried 17 | 4 15 15 17 Average Carried 10 | 3 8 15 16 Final Capacity 25 | 8 25 25 25 Final Carried 17 | 4 15 15 17 Class Distribution -------------------- 100% | Mutant Dominant Class ---------------- Mutant | -10/Materials Mutant | -10/Mines Mutant | -10/Exiles Resources | -11 -10 -10 -10 ----------- Run | Yrd Mat Min Exi Matter Collected 492 | 213 279 . . Remotely . | . . . . Salvage Created 652 | . 652 . . Parts 42 | . 42 . . Haulers Intercepted 1 | . 1 . . Recyclers Shooed . | . . . . Parts Field Recycled . | . . . . Retrieved Matter . | . . . . Parts Self-Destructed . | . . . . Prevented . | . . . . Kills | -11 -10 -10 -10 ------- Run | Yrd Mat Min Exi Combat Hostiles Destroyed 14 | . 14 . . Guns 12 | . 12 . . Classes Destroyed 6 | . 6 . . Tunneler 1 | . 1 . . Hauler 1 | . 1 . . Operator 1 | . 1 . . Watcher 2 | . 2 . . Swarmer 5 | . 5 . . Grunt 9 | . 9 . . Best Kill Streak 3 | . 3 . . Combat Bots Only 3 | . 3 . . Max Kills in Single Turn 1 | . 1 . . Gunslinging . | . . . . Exploded . | . . . . Melee . | . . . . Uniques/NPCs Destroyed . | . . . . Combat | -11 -10 -10 -10 -------- Run | Yrd Mat Min Exi Hostile Shots Fired 72 | . 72 . . Missed 19 | . 19 . . Damage Taken 732 | . 560 . 172 Core 250 | . 124 . 126 Absorbed by Shields . | . . . . Regen/Repaired (Parts) 87 | . 87 . . Core Remaining (%) 100 | 100 . . . Volleys Fired 51 | . 51 . . Largest 2 | . 2 . . Hottest 80 | . 80 . . Shots Fired 102 | . 102 . . Gun 98 | . 98 . . Cannon 4 | . 4 . . Launcher . | . . . . Special . | . . . . Kinetic 4 | . 4 . . Thermal . | . . . . Explosive . | . . . . Electromagnetic 98 | . 98 . . Robot Hit Streak 13 | . 13 . . Robot Miss Streak 5 | . 5 . . Penetration Max . | . . . . Secondary Targets 1 | . 1 . . Max Gunslinging Chain 1 | . 1 . . Shots Hit Robots 57 | . 57 . . Core Hits 22 | . 22 . . Critical Kills . | . . . . Critical Parts Destroyed . | . . . . Critical Strikes 1 | . 1 . . Corrupt 1 | . 1 . . Melee Attacks 1 | . 1 . . Impact 1 | . 1 . . Slashing . | . . . . Piercing . | . . . . Sneak Attacks . | . . . . Combat Hostiles . | . . . . Follow-up Attacks . | . . . . Damage Inflicted 1046 | . 950 . 96 Guns 827 | . 827 . . Cannons 47 | . 47 . . Explosions 73 | . 73 . . Melee . | . . . . Ramming 99 | . 3 . 96 Kinetic 15 | . 15 . . Thermal 73 | . 73 . . Explosive . | . . . . Electromagnetic 859 | . 859 . . Impact . | . . . . Slashing . | . . . . Piercing . | . . . . Highest Corruption 11 | . 1 1 11 Average Corruption 4 | . 1 1 5 Corruption Purged . | . . . . Corruption Blocked . | . . . . Effects 8 | . . . 8 Message Errors 2 | . . . 2 Matter Fused 1 | . . . 1 Heat Flow Errors 1 | . . . 1 Energy Discharges 1 | . . . 1 Data Loss (minor) 2 | . . . 2 Data Loss (major) 1 | . . . 1 Overload Shots . | . . . . Overflow Damage 22 | . 22 . . Projectiles . | . . . . Explosions 22 | . 22 . . Melee . | . . . . Knockbacks . | . . . . Impact . | . . . . Kinetic . | . . . . Secondary . | . . . . Self-Inflicted Damage 117 | . 21 . 96 Shots 1 | . 1 . . Rammed 2 | . 2 . . Targets Rammed 2 | . 2 . . Kicked . | . . . . Crushed . | . . . . Highest Temperature 238 | . 231 . 238 Average Temperature 86 | . 81 . 128 Received Heat Transfer 252 | . 252 . . Siege Activations . | . . . . Robots Corrupted 2 | . 2 . . Combat Hostiles 2 | . 2 . . Parts Fried 3 | . 3 . . Impact Corruptions . | . . . . Robots Melted . | . . . . Combat Hostiles . | . . . . Parts Melted . | . . . . Heat Transferred 100 | . 100 . . Parts Sabotaged . | . . . . Parts Stolen . | . . . . Parts Stripped . | . . . . Power Chain Reactions 2 | . 2 . . Alert | -11 -10 -10 -10 ------- Run | Yrd Mat Min Exi Peak Influence 266 | . 266 5 . Initial 5 | . . 5 . Average 69 | . 74 5 . Maximum Alert Level 1 | . 1 . . Low Security (%) 96 | 100 96 100 . Level 1 3 | . 3 . . Level 2 . | . . . . Level 3 . | . . . . Level 4 . | . . . . Level 5 . | . . . . High Security . | . . . . Max Security . | . . . . Squads Dispatched 3 | . 3 . . Investigation 2 | . 2 . . Extermination . | . . . . Reinforcement 1 | . 1 . . Assault . | . . . . Garrison . | . . . . Intercept . | . . . . Searches Triggered . | . . . . Construction Impeded . | . . . . Haulers Reinforced . | . . . . Active Scanning Responses . | . . . . Cargo Convoy Interrupts . | . . . . Stealth | -11 -10 -10 -10 --------- Run | Yrd Mat Min Exi Distress Signals 3 | . 3 . . Communications Jammed . | . . . . Distress Signals . | . . . . Times Spotted 27 | . 27 . . Peak Tracking Total 3 | . 3 . . Tactical Retreats 2 | . 2 . . Traps | -11 -10 -10 -10 ------- Run | Yrd Mat Min Exi Traps Triggered 5 | . 5 . . Indirectly . | . . . . Trap Hack Attempts . | . . . . Triggered . | . . . . Disarmed . | . . . . Reprogrammed . | . . . . Reused . | . . . . Traps Extracted . | . . . . Installed . | . . . . Triggered . | . . . . Machines | -11 -10 -10 -10 ---------- Run | Yrd Mat Min Exi Machines Disabled . | . . . . Max in Single Turn . | . . . . Machines Repaired . | . . . . Machines Dismantled . | . . . . Machines Sabotaged . | . . . . Overloaded Fab Kills . | . . . . Hacking | -11 -10 -10 -10 --------- Run | Yrd Mat Min Exi Machines Accessed 8 | . 8 . . Terminals 7 | . 7 . . Fabricators . | . . . . Repair Stations 1 | . 1 . . Recycling Units . | . . . . Scanalyzers . | . . . . Garrison Access . | . . . . Total Hacks 27 | . 27 . . Successful 15 | . 15 . . Failed 11 | . 11 . . Catastrophic 2 | . 2 . . Database Lockouts 1 | . 1 . . Manual 12 | . 12 . . Terminals 25 | . 25 . . Fabricators . | . . . . Repair Stations 2 | . 2 . . Recycling Units . | . . . . Scanalyzers . | . . . . Garrison Access . | . . . . Terminal Hacks 9 | . 9 . . Robot Analysis 2 | . 2 . . Prototype ID Bank 2 | . 2 . . Terminal Index 1 | . 1 . . Unreport Threat 1 | . 1 . . Dispatch Records 1 | . 1 . . Transport Status 1 | . 1 . . Registered Components 1 | . 1 . . Fabricator Hacks . | . . . . Repair Station Hacks 2 | . 2 . . Scan Component 1 | . 1 . . Repair 1 | . 1 . . Recycling Unit Hacks . | . . . . Scanalyzer . | . . . . Garrison Access Hacks . | . . . . Unauthorized Hacks 4 | . 4 . . Terminals 4 | . 4 . . Botnet 4 | . 4 . . Fabricators . | . . . . Repair Stations . | . . . . Recycling Units . | . . . . Scanalyzers . | . . . . Garrison Access . | . . . . Data Cores Recovered . | . . . . Used . | . . . . Hacking Detections 6 | . 6 . . Full Trace Events . | . . . . Feedback Events . | . . . . Feedback Blocked . | . . . . Robot Schematics Acquired . | . . . . Robots Built . | . . . . Authchips . | . . . . Time . | . . . . Total Robot Build Rating . | . . . . Part Schematics Acquired . | . . . . Parts Built . | . . . . Authchips . | . . . . Time . | . . . . Total Part Build Rating . | . . . . Parts Repaired 1 | . 1 . . Time 26 | . 26 . . Parts Recycled . | . . . . Recycled Matter . | . . . . Retrieved Matter . | . . . . Retrieved Components . | . . . . Parts Scanalyzed . | . . . . Part Schematics Acquired . | . . . . Parts Damaged . | . . . . Bothacking | -11 -10 -10 -10 ------------ Run | Yrd Mat Min Exi Used RIF Installer . | . . . . Robots Hacked . | . . . . Non-combat . | . . . . Combat . | . . . . Robot Hacks Applied . | . . . . Relay Couplers Released . | . . . . Fabnet Peak Effective % . | . . . . Robots Rewired . | . . . . Allies Hacked . | . . . . Hacks Repelled . | . . . . Allies | -11 -10 -10 -10 -------- Run | Yrd Mat Min Exi Total Allies . | . . . . Largest Group . | . . . . Highest-Rated Group . | . . . . Highest-Rated Ally . | . . . . Total Orders . | . . . . Ally Attacks . | . . . . Total Damage . | . . . . Kills . | . . . . Allies Corrupted . | . . . . Allies Melted . | . . . . Intel | -11 -10 -10 -10 ------- Run | Yrd Mat Min Exi Robot Analysis Total 2 | . 2 . . Derelict Logs Recovered 1 | . . 1 . Drone Launches . | . . . . Drone Recoveries . | . . . . Exploration | -11 -10 -10 -10 ------------- Run | Yrd Mat Min Exi Turns Passed 2051 | 65 1584 61 341 Spaces Moved 1037 | 35 872 46 84 Core 3 | 3 . . . Treads 502 | 32 470 . . Legs . | . . . . Wheels 532 | . 402 46 84 Hover . | . . . . Flight . | . . . . Fastest Speed 50 | 50 90 135 135 Average Speed 146 | 150 148 135 135 Slowest Speed 160 | 160 160 135 135 Overloaded Moves . | . . . . Propulsion Burnouts . | . . . . Robots Hopped . | . . . . Cave-ins Triggered . | . . . . Exploration Rate (%) 38 | 5 99 15 35 Regions Visited 3 Branch Regions 2 Pre-discovered Areas . | . . . . Known Exits Taken . | . . . . Unknown Exits Taken 3 | 1 1 1 . Scrap Searched . | . . . . Spaces Dug 1 | . 1 . . Terrain Destroyed 9 | . 8 . 1 Melee 1 | . 1 . . Projectile . | . . . . AOE 7 | . 7 . . Terrain Rammed 19 | . . . 19 Walls Destroyed 1 | . . . 1 Machines Disabled . | . . . . Actions | -11 -10 -10 -10 --------- Run | Yrd Mat Min Exi Total 1253 | 44 1060 45 104 Wait 80 | . 80 . . Move 1034 | 34 871 45 84 Hop . | . . . . Pick Up 25 | 4 21 . . Fast Attach 14 | 6 8 . . Attach 5 | . 5 . . Detach 2 | . . . 2 Swap 9 | . 9 . . Drop 12 | . 12 . . Fire 51 | . 51 . . Melee 1 | . 1 . . Ram 18 | . . . 18 Kick . | . . . . Crush 2 | . 2 . . Escape Stasis . | . . . . Rewire . | . . . . Trap . | . . . . Miscellaneous . | . . . . Route ------- -11/Scrapyard -10/Materials (discovered 5 exits: [*Mat x3] / [*Min] / [*Sub]) -10/Mines -10/Exiles History --------- Turn | Location | Event 31 | -11/Scrapyard | Discovered new exit (range 16) 66 | -11/Scrapyard | Entered Materials 311 | -10/Materials | Build established: Mutant 347 | -10/Materials | Central database locked down 418 | -10/Materials | Discovered new exit (range 6) 588 | -10/Materials | Discovered new exit (range 16) 645 | -10/Materials | Repaired Lgt. Treads 659 | -10/Materials | Discovered new exit (range 10) 991 | -10/Materials | Discovered new exit (range 14) 1457 | -10/Materials | Discovered new exit (range 16) 1650 | -10/Materials | Entered Mines 1665 | -10/Mines | Learned 4 Materials zone layouts 1704 | -10/Mines | Deemed a non-threat by the Exiles lab entrance 1706 | -10/Mines | Discovered new exit (range 5) 1711 | -10/Mines | Entered Exiles 1711 | -10/Exiles | Found Exiles lab abandoned 1827 | -10/Exiles | Core integrity fell below 50% 1867 | -10/Exiles | Core integrity fell below 20% 2037 | -10/Exiles | System corruption reached 10% 2052 | -10/Exiles | Core destroyed Last Messages --------------- PQOAVJ Destabilizing: Core damaged (-2). Slammed into Earth. Destabilizing: System corrupted (+1). System corrupted: Component data lost. Slammed into Earth. System corrupted: Heat flow error (+258). Slammed into Earth. Destabilizing: Core damaged (-12). Destabilizing: System corrupted (+2). Slammed into Earth. Destabilizing: Core damaged (-7). Map ----- +----------------------------------------------------+ | | | ?????????????????????????????????????????????????? | | ?????????????????????????????????????????????????? | | ?????????????????????????????????????????????????? | | ?????????????????????????????????????????????????? | | ?????????????????????????????????????????????????? | | ?????????????????????????????????????????????????? | | ?????????????????????????????????????????????????? | | ?????????????????????????????????????????????????? | | ?????????????????????????????????????????????????? | | ?????????????????????????????????????????????????? | | ?????????????????????????????????????????????????? | | ?????????????????????????????????????????????????? | | ?????????????????????????????????????????????????? | | ?????????????????????? ??????????????????????????? | | ??????????????????#? ?????????????????????????? | | ???????????????""?# ?????????????????????????? | | ???????????????? ## ?????????????????????????? | | ????????????????? ?????????????????????????? | | ?????????????????? #????????????????????????? | | ??????????????????# #????????????????????????? | | ??????????????????# #????????????????????????? | | ??????????????????# #???"""""????????????????? | | ??????????????????# #???""""""???????????????? | | ??????????????????# ###"""""""???????????????? | | ?????????????????## #@#"" """"#??????????????? | | ?????????????????#" """"#??????????????? | | ?????????????????#" """#??????????????? | | ?????????????????#" """#??????????????? | | ?????????????????#" """#??????????????? | | ?????????????????#" """#??????????????? | | ?????????????????#" """#??????????????? | | ?????????????????## """???????????????? | | ??????????????????# """???????????????? | | ??????????????????#" "X" """???????????????? | | ??????????????????#" """ ???????????????? | | ??????????????????#" """""""""#??????????????? | | ?????????????????##" ###########??????????????? | | ????????????????##"" #????????????????????????? | | ??????????????###"" #????????????????????????? | | ?????????????"""""" ##???????????????????????? | | ????????????"" " "" ##???###########????????? | | ???????????""" " #####"""""""""##???????? | | ?????????" " " """ """"##??????? | | ??????? "" " #??????? | | ??????? " """#??????? | | ???????? " "#??????? | | ???????? " "##?????? | | ????????? ""###???? | | ????????? """""" """#???? | +----------------------------------------------------+ Best States ------------- Heat Dissipation 35 Energy Generation 14 Energy Capacity 450 Matter Stores 300 Matter Capacity 300 Sight Range 16 Terrain Scan Density 10 Armor Coverage 150 Evasion (%) 42 Recoil Reduction 2 Item Schematics ----------------- None Robot Schematics ------------------ None Fabricated ------------ Nothing Alien Tech Used ----------------- None Achievements -------------- None Challenges ------------ None Game ------ Seed SignalDecoderWell Manual? 0 Play Time 00:15:23 Cumulative 34.9 hours Start 2024.04.11 @ 07:28:03 End 2024.04.11 @ 07:43:35 Sessions 1 Manual Loads 0 Difficulty Rogue Special Mode None Game No. 26 Rogue 26 Adventurer 0 Explorer 0 Win Type - Total 1 Types 1/0/0/0/0/0/0/0/0 Lore% 31 Gallery% 29 Achievement% 32 Wizard Run 0 Options --------- Layout 1 ASCII 0 Keyboard 0 Movement Arrows Keybinds 0 Fullscreen 1 Font 24/Smallcaps Map View 50x35 Zoom Use 0% Tactical HUD 0 Map Filters NONE Filters NONE Steam 1 RUN: f75316ec-1b37-4a69-9daf-8d2f6097db63